bitfinex-derivatives/quotes_SOLF0:USTF0_20250624
["timestamp","ask_amount","ask_price","bid_price","bid_amount"]
[1750798306752,43.0452,144.76,144.73,6.9059]
[1750798307460,36.14,144.76,144.7,40.51232061]
[1750798307661,40.7442,144.79,144.72,4.37232061]
[1750798308065,47.648,144.79,144.77,6.9043]
[1750798308955,40.7442,144.79,144.72,4.37232061]
[1750798309155,38.3481,144.79,144.72,4.37232061]
[1750798309358,36.12,144.82,144.74,4.37232061]
[1750798309556,4.5833,144.84,144.76,4.37232061]
[1750798309758,4.5833,144.84,144.78,4.37232061]
[1750798309953,6.9005,144.86,144.83,6.9014]
[1750798310153,44.02956859,144.88,144.83,6.9014]
[1750798310356,44.02956859,144.88,144.79,36.12]
[1750798310554,50.92926859,144.88,144.82,6.9018]
[1750798310954,50.92926859,144.88,144.79,40.49232061]
[1750798311155,44.02956859,144.88,144.84,6.9011]
[1750798311364,44.02956859,144.88,144.79,40.49232061]
[1750798311569,42.82762061,144.88,144.85,6.9003]
[1750798312355,49.72702061,144.88,144.85,6.9003]
[1750798312554,49.72702061,144.88,144.86,6.9001]
[1750798312754,49.72702061,144.88,144.79,40.49232061]
[1750798313153,2.248,144.92,144.83,4.37232061]
[1750798313462,2.2345,144.94,144.89,4.37232061]
[1750798313766,40.11232061,144.97,144.89,4.37232061]
[1750798313961,2.2345,144.98,144.91,4.35871708]
[1750798314160,2.2345,144.98,144.92,35.74]
[1750798314375,6.59321708,144.98,144.92,35.74]
[1750798315262,2.2345,144.98,144.92,35.74]
[1750798315765,6.895,144.97,144.92,42.637]
[1750798316155,4.35871708,144.97,144.85,4.6286]
[1750798316361,4.35871708,144.93,144.86,40.09871708]
[1750798316966,11.25601708,144.93,144.88,6.899]
[1750798317161,4.35871708,144.93,144.88,6.899]
[1750798317667,4.35871708,144.91,144.86,35.74]
[1750798317858,4.35871708,144.89,144.83,35.74]
[1750798318168,4.35871708,144.89,144.81,35.74]
[1750798318464,6.8999,144.87,144.82,6.9018]
[1750798318664,4.35871708,144.89,144.81,35.74]
[1750798319256,2.2802,144.9,144.82,4.35871708]
[1750798319462,2.2802,144.9,144.84,4.35871708]
[1750798319661,9.1787,144.9,144.86,6.8999]
[1750798319860,2.2802,144.9,144.86,6.8999]
[1750798320459,2.2802,144.9,144.82,4.35871708]
[1750798320460,4.35871708,144.89,144.82,35.74]
[1750798321366,6.9,144.87,144.83,6.9013]
[1750798321566,6.9,144.87,144.82,35.74]
[1750798321861,4.35871708,144.87,144.82,35.74]
[1750798322062,6.901,144.85,144.82,42.642]
[1750798322465,6.901,144.85,144.82,6.902]
[1750798324677,7.27670199,144.85,144.79,35.72]
[1750798325369,7.27670199,144.85,144.8,6.9028]
[1750798326059,7.27670199,144.85,144.81,6.9026]
[1750798326264,7.27670199,144.85,144.79,35.72]
[1750798326781,14.17750199,144.85,144.79,35.72]
[1750798327875,6.9012,144.84,144.81,6.9021]
[1750798328381,14.17760199,144.85,144.81,6.9021]
[1750798329386,14.17760199,144.85,144.82,6.902]
[1750798331869,7.27670199,144.85,144.82,6.902]
[1750798332175,35.72,144.87,144.79,35.72]
[1750798332380,6.9002,144.86,144.79,35.72]
[1750798332773,35.72,144.87,144.83,6.9012]
[1750798333080,42.6199,144.87,144.83,6.9012]
[1750798333282,35.72,144.87,144.79,35.72]
[1750798333580,7.27670199,144.86,144.79,35.72]
[1750798333776,7.27670199,144.86,144.82,6.902]
[1750798334881,7.27670199,144.86,144.81,6.9024]
[1750798335179,2.372,144.85,144.81,6.9024]
[1750798335479,6.9016,144.84,144.81,6.9024]
[1750798338280,6.9016,144.84,144.8,6.9028]
[1750798338467,6.9017,144.83,144.8,6.9028]
[1750798339283,7.27670199,144.84,144.75,2.2499]
[1750798339489,9.68990199,144.82,144.75,37.9899]
[1750798339784,16.59220199,144.82,144.75,37.9899]
[1750798340085,9.3155,144.82,144.75,37.9899]
[1750798340279,2.4132,144.82,144.75,37.9899]
[1750798340581,2.4132,144.82,144.79,6.9033]
[1750798340884,2.4132,144.82,144.75,37.9899]
[1750798341179,2.4132,144.82,144.79,6.9031]
[1750798341774,2.3924,144.89,144.76,7.27788151]
[1750798341979,4.5217,144.88,144.79,7.27788151]
[1750798342183,6.9,144.87,144.8,35.58]
[1750798342382,4.5217,144.88,144.8,35.58]
[1750798343076,11.4212,144.88,144.85,6.9002]
[1750798343383,11.4212,144.88,144.8,35.58]
[1750798343885,11.4212,144.88,144.85,6.9004]
[1750798344477,6.8998,144.87,144.85,6.9004]
[1750798344876,4.36453836,144.87,144.8,35.58]
[1750798345078,6.9005,144.86,144.8,35.58]
[1750798345277,4.36453836,144.87,144.81,6.9022]
[1750798345578,4.36453836,144.87,144.8,35.58]
[1750798345778,4.36453836,144.87,144.82,6.9021]
[1750798345979,4.36453836,144.85,144.82,6.9021]
[1750798346176,11.26563836,144.85,144.82,6.9021]
[1750798346574,6.9011,144.85,144.82,6.9021]
[1750798346778,4.5217,144.88,144.8,35.58]
[1750798346978,4.36453836,144.87,144.8,35.58]
[1750798347580,11.26453836,144.87,144.84,6.901]
[1750798349887,6.9002,144.86,144.84,6.901]
[1750798351274,6.9002,144.86,144.83,6.9014]
[1750798353190,6.9002,144.86,144.84,6.9011]
[1750798354789,4.36453836,144.87,144.83,6.9014]
[1750798356189,6.9007,144.85,144.83,6.9014]
[1750798358179,6.9004,144.86,144.83,6.9014]
[1750798358692,4.36453836,144.87,144.8,35.58]
[1750798358894,6.9009,144.85,144.8,35.58]
[1750798359093,6.9009,144.85,144.83,6.9016]
[1750798360091,6.9009,144.85,144.82,6.9019]
[1750798360291,6.9009,144.85,144.8,35.58]
[1750798360479,6.9009,144.85,144.83,6.9014]
[1750798361795,6.9004,144.86,144.84,6.9011]
[1750798365398,4.5217,144.88,144.81,4.36453836]
[1750798365590,5.78069259,144.87,144.81,6.76283836]
[1750798365796,4.5217,144.88,144.81,6.76283836]
[1750798366100,4.5217,144.88,144.84,6.9008]
[1750798366395,6.8998,144.87,144.84,6.9008]
[1750798368702,4.36453836,144.87,144.83,6.9014]
[1750798368903,4.36453836,144.87,144.81,2.3983]
[1750798369398,6.9004,144.86,144.83,6.9012]
[1750798370097,6.9004,144.86,144.84,6.9009]
[1750798371498,11.26453836,144.87,144.81,6.76283836]
[1750798371807,2.2847,144.88,144.81,6.76283836]
[1750798372094,35.58,144.89,144.83,4.36453836]
[1750798372499,37.6647,144.92,144.85,4.36453836]
[1750798373300,37.6647,144.92,144.91,6.8978]
[1750798373499,603.0566,144.94,144.91,6.8978]
[1750798374302,6.8969,144.93,144.91,6.8978]
[1750798374491,39.62453836,144.95,144.92,6.8972]
[1750798374691,6.8968,144.94,144.87,4.36453836]
[1750798374900,39.62453836,144.95,144.87,4.36453836]
[1750798375094,43.93228083,144.95,144.87,4.36453836]
[1750798376104,6.8967,144.94,144.91,6.8975]
[1750798376305,43.93228083,144.95,144.87,4.36453836]
[1750798376607,6.8989,144.89,144.84,35.26]
[1750798378307,6.8989,144.89,144.87,6.8995]
[1750798381308,39.60453836,144.91,144.88,6.899]
[1750798382202,46.50263836,144.91,144.88,6.899]
[1750798382602,46.50263836,144.91,144.89,6.8987]
[1750798383312,46.50263836,144.91,144.88,6.899]
[1750798383802,6.8983,144.9,144.88,6.899]
[1750798384002,39.60453836,144.91,144.88,6.899]
[1750798384205,39.60453836,144.91,144.89,6.8987]
[1750798384405,46.50263836,144.91,144.89,6.8987]
[1750798384604,46.50263836,144.91,144.84,35.26]
[1750798385012,6.8983,144.9,144.88,6.899]
[1750798387316,6.8988,144.89,144.84,35.26]
[1750798387709,6.8985,144.9,144.87,6.8994]
[1750798388920,6.8985,144.9,144.84,35.26]
[1750798389727,46.50263836,144.91,144.88,6.8989]
[1750798389907,35.24,144.91,144.84,35.26]
[1750798390111,35.24,144.91,144.85,4.36453836]
[1750798390424,35.24,144.91,144.9,6.8983]
[1750798390809,13.67033836,144.93,144.91,6.8978]
[1750798391010,2.4087,144.93,144.91,6.8978]
[1750798391408,35.24,144.94,144.87,4.36453836]
[1750798391614,2.1964,144.96,144.89,4.36453836]
[1750798392214,9.0921,144.96,144.93,6.8964]
[1750798392919,6.896,144.95,144.93,6.8964]
[1750798393124,4.36453836,144.95,144.88,35.24]
[1750798393619,4.36453836,144.95,144.92,6.897]
[1750798394017,6.8965,144.94,144.92,6.897]
[1750798394221,4.36453836,144.95,144.92,6.897]
[1750798394914,4.36453836,144.95,144.88,35.24]
[1750798395318,6.8972,144.93,144.9,6.8981]
[1750798396121,6.8972,144.93,144.91,6.8977]
[1750798398022,6.8964,144.94,144.92,6.8973]
[1750798398321,6.8964,144.94,144.88,35.24]
[1750798399120,2.1964,144.96,144.93,6.8967]
[1750798400016,37.5827,144.97,144.89,4.36453836]
[1750798400220,35.24,144.97,144.91,4.36453836]
[1750798400613,35.24,144.97,144.96,6.8954]
[1750798401217,35.24,144.97,144.95,6.8957]
[1750798402725,35.24,144.97,144.92,2.2992]
[1750798402931,4.36453836,144.94,144.88,35.24]
[1750798403427,11.26103836,144.94,144.91,6.8977]
[1750798404921,6.8961,144.95,144.88,35.24]
[1750798405120,6.71353836,144.96,144.89,4.36453836]
[1750798405625,6.71353836,144.96,144.92,6.8969]
[1750798406524,6.8962,144.95,144.93,6.8968]
[1750798408314,6.71353836,144.96,144.92,6.8971]
[1750798408520,6.8965,144.94,144.89,4.36453836]
[1750798408922,6.8972,144.93,144.9,6.8979]
[1750798409123,6.8972,144.93,144.88,35.24]
[1750798409938,6.8972,144.93,144.9,6.8979]
[1750798410431,6.8972,144.93,144.91,6.8978]
[1750798415228,6.8972,144.93,144.9,6.898]
[1750798415533,6.8975,144.92,144.9,6.898]
[1750798419139,6.8971,144.93,144.91,6.8978]
[1750798419432,4.32562568,144.95,144.88,35.24]
[1750798419638,16.85562538,144.96,144.88,35.24]
[1750798419843,6.8968,144.94,144.91,6.8975]
[1750798420225,6.8969,144.93,144.91,6.8975]
[1750798420538,95.72884468,145.04,144.88,35.24]
[1750798420539,2.4128,145.0,144.92,39.71930019]
[1750798420830,2.4128,145.0,144.93,35.36]
[1750798421036,37.7728,145.0,144.93,35.36]
[1750798421333,44.6666,145.0,144.97,6.8947]
[1750798422142,37.7728,145.0,144.95,6.8956]
[1750798422335,4.35930019,144.97,144.89,2.4292]
[1750798422630,4.35930019,144.95,144.86,35.34]
[1750798422830,6.8976,144.92,144.88,6.8991]
[1750798423030,37.5611,144.94,144.86,39.69930019]
[1750798423432,6.8975,144.92,144.89,6.8985]
[1750798425330,6.8979,144.91,144.89,6.8985]
[1750798425530,4.35930019,144.93,144.84,6.78850019]
[1750798425736,4.35930019,144.91,144.84,6.78850019]
[1750798425940,37.6251,144.9,144.85,6.9004]
[1750798426324,6.8995,144.88,144.85,6.9004]
[1750798426633,6.8995,144.88,144.85,6.9006]
[1750798426830,6.8998,144.87,144.84,2.4292]
[1750798427030,4.36390924,144.88,144.82,6.9019]
[1750798428132,4.36390924,144.88,144.8,39.72390924]
[1750798428540,4.36390924,144.88,144.84,6.9011]
[1750798429237,11.26360924,144.88,144.84,6.9011]
[1750798429538,11.26360924,144.88,144.85,6.9005]
[1750798431140,11.26360924,144.88,144.8,39.72390924]
[1750798431540,11.26360924,144.88,144.85,6.9004]
[1750798435737,4.36390924,144.88,144.86,6.9]
[1750798435941,6.8989,144.89,144.82,4.36390924]
[1750798436442,6.8989,144.89,144.87,6.8997]
[1750798437148,6.8989,144.89,144.86,6.9]
[1750798437330,6.8993,144.88,144.82,4.36390924]
[1750798437535,11.26320924,144.88,144.82,4.36390924]
[1750798437736,4.36390924,144.88,144.85,6.9004]
[1750798439245,6.8997,144.87,144.85,6.9004]
[1750798441446,6.9002,144.86,144.8,39.72390924]
[1750798441650,35.48,144.85,144.78,6.71900924]
[1750798442037,35.48,144.85,144.83,6.9012]
[1750798445846,35.48,144.85,144.78,6.71900924]
[1750798446249,35.48,144.85,144.83,6.9012]
[1750798446646,35.48,144.85,144.78,6.71900924]
[1750798446944,35.48,144.85,144.84,6.9011]
[1750798447648,35.48,144.85,144.78,4.36390924]
[1750798448153,35.48,144.85,144.83,6.9014]
[1750798448649,42.381,144.85,144.83,6.9014]
[1750798449054,35.48,144.85,144.84,6.9011]
[1750798449547,35.48,144.85,144.8,4.36390924]
[1750798450148,4.36719127,144.83,144.74,16.95899434]
[1750798450356,4.36719127,144.81,144.73,2.3201]
[1750798450553,6.9038,144.79,144.77,6.9042]
[1750798451751,4.36719127,144.79,144.73,2.3201]
[1750798451950,4.36719127,144.79,144.7,39.84719127]
[1750798452257,4.36719127,144.79,144.74,6.9056]
[1750798452747,6.9048,144.77,144.75,6.9053]
[1750798452942,35.48,144.76,144.75,6.9053]
[1750798453853,35.48,144.76,144.7,39.84719127]
[1750798453854,42.385,144.76,144.74,6.9058]
[1750798454050,42.385,144.76,144.7,39.85114592]
[1750798454266,42.385,144.76,144.7,4.37114592]
[1750798454552,6.9055,144.75,144.7,4.37114592]
[1750798454949,6.9055,144.75,144.73,6.9063]
[1750798455155,46.75634592,144.76,144.73,6.9063]
[1750798456545,42.3852,144.76,144.73,6.9063]
[1750798457048,6.9055,144.75,144.73,6.9063]
[1750798457245,35.48,144.76,144.74,6.9057]
[1750798458846,42.385,144.76,144.73,6.9061]
[1750798459151,42.385,144.76,144.69,2.3842]
[1750798459152,4.37114592,144.75,144.69,2.3842]
[1750798459349,6.9019,144.83,144.74,4.37126763]
[1750798459550,35.5,144.82,144.75,2.3658]
[1750798459848,11.27416763,144.81,144.78,6.9039]
[1750798460960,11.27416763,144.81,144.75,2.3658]
[1750798461456,11.27416763,144.81,144.78,6.9037]
[1750798461755,35.5,144.82,144.7,35.5]
[1750798461756,39.86905173,144.82,144.73,4.36905173]
[1750798461948,8.88645173,144.8,144.77,6.9044]
[1750798462352,15.78995173,144.8,144.77,6.9044]
[1750798463357,6.9037,144.79,144.77,6.9044]
[1750798463551,35.5,144.78,144.77,6.9044]
[1750798465356,35.52,144.78,144.77,6.9044]
[1750798465558,35.52,144.78,144.73,4.36905173]
[1750798465952,42.4241,144.78,144.76,6.9047]
[1750798466658,35.52,144.78,144.76,6.9047]
[1750798468259,35.52,144.78,144.77,6.9045]
[1750798468457,35.52,144.79,144.77,6.9045]
[1750798468662,35.52,144.79,144.71,4.36905173]
[1750798468861,6.905,144.76,144.71,4.36905173]
[1750798469356,6.905,144.76,144.73,6.906]
[1750798469559,35.52,144.75,144.68,2.276]
[1750798469755,35.52,144.74,144.72,6.9066]
[1750798470058,8.88890009,144.8,144.72,4.37150009]
[1750798470261,35.52,144.79,144.72,4.37150009]
[1750798470459,35.52,144.78,144.76,6.9049]
[1750798470759,4.5174,144.8,144.76,6.9049]
[1750798471056,35.52,144.79,144.77,6.9044]
[1750798471460,42.4238,144.79,144.74,4.36883692]
[1750798471755,4.5174,144.8,144.74,4.36883692]
[1750798472053,4.5174,144.8,144.7,35.52]
[1750798472054,2.2914,144.8,144.76,4.36883692]
[1750798472257,35.52,144.8,144.76,4.36883692]
[1750798472755,2.3907,144.84,144.76,4.36883692]
[1750798472956,35.52,144.85,144.79,4.36605639]
[1750798473154,35.52,144.85,144.81,4.36605639]
[1750798473351,35.52,144.85,144.83,6.9012]
[1750798473853,35.52,144.85,144.8,4.36468594]
[1750798474052,35.52,144.85,144.84,6.9011]
[1750798475366,596.4,144.86,144.85,6.9007]
[1750798475658,631.9,144.86,144.85,6.9007]
[1750798476261,631.9,144.86,144.84,6.9009]
[1750798476660,638.8003,144.86,144.84,6.9009]
[1750798477757,631.9,144.86,144.78,2.3229]
[1750798478064,631.9,144.86,144.79,4.36468594]
[1750798478362,638.8004,144.86,144.83,6.9013]
[1750798478964,631.9,144.86,144.84,6.901]
[1750798479264,631.9,144.86,144.81,4.36468594]
[1750798479465,170.78,144.87,144.85,6.9004]
[1750798482065,177.6798,144.87,144.85,6.9004]
[1750798482369,170.78,144.87,144.84,6.9009]
[1750798482964,170.78,144.87,144.79,4.36468594]
[1750798483468,6.901,144.85,144.81,6.9021]
[1750798483770,6.901,144.85,144.78,6.68758594]
[1750798484167,6.901,144.85,144.82,6.9019]
[1750798486673,6.901,144.85,144.83,6.9015]
[1750798488368,11.26508594,144.86,144.83,6.9015]
[1750798488570,35.5,144.85,144.8,4.36468594]
[1750798490370,35.5,144.85,144.83,6.9013]
[1750798490872,42.4007,144.85,144.83,6.9013]
[1750798492971,35.5,144.85,144.83,6.9013]
[1750798493572,35.5,144.85,144.84,6.9011]
[1750798497972,6.9,144.87,144.79,4.36468594]
[1750798498176,6.9,144.87,144.78,2.3229]
[1750798498177,35.36,144.86,144.81,4.36438999]
[1750798499177,35.36,144.86,144.85,6.9007]
[1750798499375,6.8995,144.88,144.81,4.36438999]
[1750798499581,35.36,144.87,144.81,4.36438999]
[1750798499773,6.8995,144.88,144.86,6.9002]
[1750798499972,4.7332,144.89,144.83,4.36438999]
[1750798500173,2.3907,144.89,144.88,6.8992]
[1750798500870,2.3907,144.89,144.87,6.8995]
[1750798501276,2.3907,144.89,144.83,4.36438999]
[1750798501478,2.3907,144.89,144.87,6.8995]
[1750798503693,9.2895,144.89,144.87,6.8995]
[1750798505293,6.75508999,144.89,144.82,2.2062]
[1750798505895,6.8995,144.88,144.85,6.9004]
[1750798506796,6.8999,144.87,144.85,6.9004]
[1750798507897,6.8995,144.88,144.85,6.9004]
[1750798508094,6.75508999,144.89,144.85,6.9004]
[1750798508597,6.8995,144.88,144.86,6.9001]
[1750798508797,2.3907,144.89,144.86,6.9001]
[1750798508997,6.75448543,144.89,144.82,6.56998543]
[1750798510095,6.8998,144.87,144.85,6.9004]
[1750798510596,6.8995,144.88,144.86,6.9002]
[1750798511298,2.3907,144.89,144.86,6.9002]
[1750798511898,6.8993,144.88,144.86,6.9002]
[1750798512597,6.8997,144.87,144.85,6.9005]
[1750798512791,35.36,144.86,144.8,39.72378543]
[1750798513303,42.2605,144.86,144.8,39.72378543]
[1750798513703,42.2605,144.86,144.83,6.9012]
[1750798513903,6.9007,144.85,144.83,6.9012]
[1750798514701,170.02,144.86,144.82,6.9017]
[1750798514997,170.02,144.86,144.79,4.36378543]
[1750798515203,176.9204,144.86,144.79,4.36378543]
[1750798515504,176.9204,144.86,144.83,6.9014]
[1750798519301,174.38378543,144.86,144.79,12.58525204]
[1750798519503,4.36378543,144.84,144.77,35.36]
[1750798520101,4.36378543,144.84,144.81,6.9023]
[1750798521407,11.26518543,144.84,144.81,6.9023]
[1750798521798,4.36378543,144.84,144.81,6.9023]
[1750798522108,4.36378543,144.84,144.76,6.78728543]
[1750798522295,2.2999,144.83,144.76,6.78728543]
[1750798522500,35.36,144.82,144.76,6.78728543]
[1750798522699,35.36,144.82,144.8,6.9031]
[1750798522901,35.36,144.82,144.76,6.78728543]
[1750798523101,35.36,144.82,144.76,19.37253747]
[1750798523308,35.36,144.82,144.76,6.78728543]
[1750798523809,35.36,144.82,144.81,6.9026]
[1750798525603,6.905,144.95,144.81,11.26322443]
[1750798525809,2.2291,144.91,144.83,4.36322443]
[1750798526105,6.8999,144.87,144.81,39.58271284]
[1750798526302,11.26261284,144.87,144.79,4.36271284]
[1750798526506,35.22,144.86,144.79,16.94796488]
[1750798526705,35.22,144.86,144.84,6.9008]
[1750798526905,35.22,144.86,144.79,16.94796488]
[1750798527805,35.22,144.86,144.85,6.9007]
[1750798530606,2.2291,144.91,144.82,47.80525204]
[1750798530813,2.2291,144.91,144.85,4.36271284]
[1750798531209,2.2291,144.91,144.9,6.8983]
[1750798534118,2.2291,144.91,144.83,37.5171]
[1750798534419,6.59181284,144.91,144.84,4.36271284]
[1750798534714,6.8986,144.9,144.84,4.36271284]
[1750798535317,6.8986,144.9,144.87,6.8993]
[1750798535717,4.36271284,144.89,144.83,37.5171]
[1750798536018,35.2,144.88,144.81,4.36271284]
[1750798536222,6.8998,144.87,144.84,6.9008]
[1750798538210,39.48251027,144.88,144.79,12.58525204]
[1750798538412,4.36271284,144.86,144.78,6.71021284]
[1750798538716,6.9007,144.85,144.82,6.9019]
[1750798540118,11.26311284,144.86,144.8,4.36271284]
[1750798540407,6.9004,144.86,144.8,4.36271284]
[1750798540811,35.2,144.88,144.82,4.36271284]
[1750798541420,35.2,144.88,144.86,6.9]
[1750798541615,35.2,144.88,144.82,4.36271284]
[1750798541823,35.2,144.88,144.84,4.36271284]
[1750798542012,35.2,144.88,144.87,6.8997]
[1750798542210,37.4291,144.91,144.84,4.36271284]
[1750798542417,44.3272,144.91,144.88,6.899]
[1750798544819,6.8985,144.9,144.88,6.899]
[1750798545519,44.3271,144.91,144.88,6.899]
[1750798546628,37.4291,144.91,144.84,39.56271284]
[1750798546821,37.4291,144.91,144.85,2.2309]
[1750798547226,44.4747,144.93,144.86,4.36271284]
[1750798547621,44.4747,144.93,144.9,6.8979]
[1750798548618,35.2,144.93,144.91,6.8976]
[1750798549630,42.0969,144.93,144.91,6.8976]
[1750798549828,35.2,144.93,144.9,6.898]
[1750798550126,35.2,144.93,144.86,4.36271284]
[1750798550821,6.8975,144.92,144.86,4.36271284]
[1750798551230,6.8975,144.92,144.89,6.8985]
[1750798551934,6.8975,144.92,144.86,4.36271284]
[1750798552327,6.8979,144.91,144.85,4.5117]
[1750798552531,6.8979,144.91,144.88,6.899]
[1750798553735,6.8984,144.9,144.88,6.899]
[1750798555732,4.36271284,144.9,144.84,35.2]
[1750798557030,6.899,144.89,144.84,35.2]
[1750798557939,6.899,144.89,144.86,6.8999]
[1750798558138,6.899,144.89,144.84,35.2]
[1750798558738,6.8994,144.88,144.82,4.36271284]
[1750798559040,4.36271284,144.88,144.81,37.6516]
[1750798559246,6.9011,144.85,144.78,39.60271284]
[1750798559742,6.9009,144.85,144.78,39.60271284]
[1750798560243,6.9009,144.85,144.82,6.9017]
[1750798560435,6.9009,144.85,144.78,39.60271284]
[1750798561238,4.36271284,144.84,144.78,35.24]
[1750798561440,4.36271284,144.82,144.74,631.28]
[1750798562443,42.1427,144.81,144.74,35.24]
[1750798562741,4.36271284,144.8,144.74,35.24]
[1750798562939,6.9042,144.78,144.74,35.24]
[1750798563142,6.9042,144.78,144.73,124.48486903]
[1750798564035,6.9042,144.78,144.75,6.9051]
[1750798564542,39.60271284,144.83,144.8,6.9028]
[1750798564734,39.60271284,144.83,144.75,4.36271284]
[1750798564931,4.36271284,144.81,144.73,124.48486903]
[1750798565140,11.26651284,144.79,144.76,6.9047]
[1750798565340,46.52651284,144.79,144.76,6.9047]
[1750798565847,35.26,144.79,144.73,128.84758187]
[1750798567150,35.26,144.79,144.78,6.904]
[1750798568646,35.26,144.79,144.73,128.84758187]
[1750798569449,35.26,144.79,144.78,6.904]
[1750798582362,35.26,144.79,144.77,6.9038]
[1750798582567,39.62271284,144.79,144.73,124.48486903]
[1750798583066,39.62271284,144.79,144.77,6.9037]
[1750798583255,39.62271284,144.79,144.73,124.48486903]
[1750798583562,39.62271284,144.79,144.77,6.9037]
[1750798584064,35.26,144.79,144.78,6.9035]
[1750798585953,35.22,144.82,144.75,4.36271284]
[1750798586155,35.22,144.82,144.76,2.4251]
[1750798586357,35.22,144.82,144.8,6.9023]
[1750798586773,35.22,144.82,144.76,2.4251]
[1750798587262,35.22,144.82,144.8,6.9022]
[1750798588265,11.26381284,144.83,144.8,6.9022]
[1750798588466,46.48381284,144.83,144.8,6.9022]
[1750798590767,46.48381284,144.83,144.76,2.4251]
[1750798592669,46.48381284,144.83,144.76,6.78781284]
[1750798593068,46.48381284,144.83,144.81,6.902]
[1750798595663,46.48381284,144.83,144.8,6.9023]
[1750798597473,46.48381284,144.83,144.81,6.902]
[1750798597969,39.58271284,144.83,144.81,6.902]
[1750798598367,2.2156,144.84,144.76,20.59651284]
[1750798598565,2.2156,144.84,144.78,4.36587166]
[1750798598866,35.22,144.85,144.78,4.36587166]
[1750798599069,35.22,144.85,144.84,6.9006]
[1750798599467,35.22,144.85,144.83,6.9008]
[1750798600473,35.22,144.85,144.84,6.9006]
[1750798608274,2.3909,144.88,144.86,6.8994]
[1750798608481,4.36587166,144.87,144.8,4.36587166]
[1750798608777,6.9002,144.85,144.83,6.901]
[1750798609077,4.36587166,144.87,144.83,6.901]
[1750798609877,6.8999,144.86,144.84,6.9005]
[1750798613585,6.8999,144.86,144.83,6.9008]
[1750798614785,6.9002,144.85,144.83,6.9008]
[1750798616184,6.8999,144.86,144.83,6.9008]
[1750798616684,6.9002,144.85,144.83,6.9008]
[1750798618087,6.8998,144.86,144.84,6.9004]
[1750798619384,6.75677166,144.88,144.8,4.36587166]
[1750798620287,6.8993,144.87,144.85,6.8999]
[1750798620489,6.75677166,144.88,144.85,6.8999]
[1750798621584,13.65577166,144.88,144.86,6.8994]
[1750798622786,6.8992,144.87,144.81,2.2257]
[1750798622987,6.8992,144.87,144.81,6.59157166]
[1750798623187,6.8992,144.87,144.81,41.79157166]
[1750798623691,6.8992,144.87,144.85,6.9001]
[1750798624293,6.75677166,144.88,144.81,37.4257]
[1750798624495,4.36587166,144.86,144.78,39.56587166]
[1750798624693,39.56587166,144.86,144.78,39.56587166]
[1750798625287,6.9006,144.84,144.82,6.9013]
[1750798625891,6.9004,144.85,144.82,6.9013]
[1750798626998,6.9004,144.85,144.78,39.56587166]
[1750798627798,42.0999,144.86,144.83,6.9009]
[1750798628094,42.0999,144.86,144.78,39.56587166]
[1750798628704,35.2,144.86,144.78,39.56587166]
[1750798629104,2.3909,144.88,144.8,4.36587166]
[1750798629601,2.3909,144.88,144.87,6.8992]
[1750798629908,35.2,144.89,144.87,6.8992]
[1750798631203,35.2,144.89,144.88,6.8987]
[1750798631807,2.3339,144.91,144.89,6.898]
[1750798632010,41.97597166,144.92,144.84,4.36587166]
[1750798632310,39.56587166,144.92,144.84,4.36587166]
[1750798633002,46.46287166,144.92,144.89,6.898]
[1750798633208,46.45910249,144.92,144.89,6.898]
[1750798633407,11.26010249,144.9,144.87,6.8991]
[1750798635609,11.26010249,144.9,144.83,4.7819]
[1750798635810,4.36210249,144.9,144.83,4.7819]